lending/lending_fUSD_20260110
["ID","MTS","AMOUNT","RATE_DAILY","PERIOD"]
[401199332,1768038653471,-216.87423394,0.00017618,2]
[401199333,1768038653481,-178.71892515,0.00017618,2]
[401199334,1768038653491,-150.0,0.00017619,2]
[401199335,1768038653500,-553.64373807,0.00017625,2]
[401199336,1768038653510,-150.0,0.00017632,2]
[401199337,1768038653519,-263.75602621,0.00017636,2]
[401199338,1768038653529,-255.68743637,0.00017636,2]
[401199339,1768038653539,-189.54348929,0.00017636,2]
[401199340,1768038653549,-229.31905987,0.00017636,2]
[401199341,1768038653559,-216.87423394,0.00017636,2]
[401199342,1768038653568,-178.71892515,0.00017636,2]
[401199343,1768038653579,-150.0,0.0001764,2]
[401199344,1768038653588,-10537.80982193,0.0001764,2]
[401199345,1768038653598,-150.0,0.00017646,2]
[401199346,1768038653608,-150.0,0.00017654,2]
[401199347,1768038653618,-263.75602621,0.00017655,2]
[401199348,1768038653628,-255.68743637,0.00017655,2]
[401199349,1768038653638,-189.54348929,0.00017655,2]
[401199350,1768038653648,-229.31905987,0.00017655,2]
[401199351,1768038653658,-216.87423394,0.00017655,2]
[401199352,1768038653667,-178.71892515,0.00017655,2]
[401199353,1768038653676,-417.0,0.00017659,2]
[401199354,1768038653686,-150.0,0.00017662,2]
[401199355,1768038653695,-150.0,0.00017667,2]
[401199356,1768038653705,-263.75602621,0.00017673,2]
[401199357,1768038653714,-255.68743637,0.00017673,2]
[401199358,1768038653724,-189.54348929,0.00017673,2]
[401199359,1768038653733,-229.31905987,0.00017673,2]
[401199360,1768038653742,-216.87423394,0.00017673,2]
[401199361,1768038653751,-150.0,0.00017673,2]
[401199362,1768038653761,-178.71892515,0.00017673,2]
[401199363,1768038653770,-150.0,0.00017675,2]
[401199364,1768038653779,-183.0,0.0001768,2]
[401199365,1768038653788,-834.0,0.0001768,2]
[401199366,1768038653798,-561.2,0.00017685,2]
[401199367,1768038653807,-417.0,0.00017687,2]
[401199368,1768038653815,-150.0,0.00017688,2]
[401199369,1768038653825,-263.75602621,0.00017691,2]
[401199370,1768038653835,-255.68743637,0.00017691,2]
[401199371,1768038653844,-189.54348929,0.00017691,2]
[401199372,1768038653853,-229.31905987,0.00017691,2]
[401199373,1768038653863,-216.87423394,0.00017691,2]
[401199374,1768038653872,-178.71892515,0.00017691,2]
[401199375,1768038653882,-1000.0,0.000177,2]
[401199376,1768038653892,-150.0,0.00017705,2]
[401199377,1768038653902,-263.75602621,0.00017709,2]
[401199378,1768038653911,-255.68743637,0.00017709,2]
[401199379,1768038653921,-189.54348929,0.00017709,2]
[401199380,1768038653931,-229.31905987,0.00017709,2]
[401199381,1768038653941,-216.87423394,0.00017709,2]
[401199382,1768038653950,-178.71892515,0.00017709,2]
[401199383,1768038653960,-150.0,0.00017714,2]
[401199384,1768038653969,-150.0,0.00017723,2]
[401199385,1768038653979,-263.75602621,0.00017727,2]
[401199386,1768038653992,-255.68743637,0.00017727,2]
[401199387,1768038654002,-189.54348929,0.00017727,2]
[401199388,1768038654016,-229.31905987,0.00017727,2]
[401199389,1768038654027,-216.87423394,0.00017727,2]
[401199390,1768038654037,-178.71892515,0.00017727,2]
[401199391,1768038654047,-7554.21886386,0.0001773,2]
[401199392,1768038654056,-150.0,0.00017733,2]
[401199393,1768038654068,-150.0,0.00017734,2]
[401199394,1768038654078,-1000.0,0.00017737,2]
[401199395,1768038654088,-150.0,0.00017738,2]
[401199396,1768038654098,-1000.0,0.00017739,2]
[401199397,1768038654108,-1000.0,0.00017741,2]
[401199398,1768038654118,-263.75602621,0.00017745,2]
[401199399,1768038654128,-255.68743637,0.00017745,2]
[401199400,1768038654138,-189.54348929,0.00017745,2]
[401199401,1768038654149,-229.31905987,0.00017745,2]
[401199402,1768038654160,-216.87423394,0.00017745,2]
[401199403,1768038654170,-178.71892515,0.00017745,2]
[401199404,1768038654180,-1000.0,0.00017752,2]
[401199405,1768038654191,-150.0,0.00017755,2]
[401199406,1768038654200,-154.50124005,0.00017756,2]
[401199407,1768038654210,-150.0,0.00017758,2]
[401199408,1768038654220,-1000.0,0.00017763,2]
[401199409,1768038654230,-263.75602621,0.00017764,2]
[401199410,1768038654241,-255.68743637,0.00017764,2]
[401199411,1768038654251,-189.54348929,0.00017764,2]
[401199412,1768038654261,-229.31905987,0.00017764,2]
[401199413,1768038654271,-216.87423394,0.00017764,2]
[401199414,1768038654281,-178.71892515,0.00017764,2]
[401199415,1768038654290,-150.0,0.00017764,2]
[401199416,1768038654300,-561.2,0.00017764,2]
[401199417,1768038654310,-150.0,0.00017775,2]
[401199418,1768038654319,-1000.0,0.00017775,2]
[401199419,1768038654330,-1000.0,0.00017775,2]
[401199420,1768038654339,-263.75602621,0.00017782,2]
[401199421,1768038654349,-255.68743637,0.00017782,2]
[401199422,1768038654358,-189.54348929,0.00017782,2]
[401199423,1768038654368,-229.31905987,0.00017782,2]
[401199424,1768038654378,-216.87423394,0.00017782,2]
[401199425,1768038654387,-178.71892515,0.00017782,2]
[401199426,1768038654397,-1000.0,0.00017782,2]
[401199427,1768038654407,-1000.0,0.00017783,2]
[401199428,1768038654415,-171.19946993,0.00017789,2]
[401199429,1768038654425,-1000.0,0.0001779,2]
[401199430,1768038654435,-150.0,0.00017792,2]
[401199431,1768038654445,-150.0,0.00017793,2]
[401199432,1768038654455,-150.0,0.00017795,2]
[401199433,1768038654464,-500.0,0.00017799,2]
[401199434,1768038654473,-30000.0,0.000178,2]
[401199435,1768038654483,-263.75602621,0.000178,2]
[401199436,1768038654493,-255.68743637,0.000178,2]
[401199437,1768038654504,-189.54348929,0.000178,2]
[401199438,1768038654514,-1000.0,0.000178,2]
[401199439,1768038654524,-229.31905987,0.000178,2]
[401199440,1768038654534,-150.0,0.000178,2]
[401199441,1768038654544,-150.0,0.000178,2]
[401199442,1768038654554,-216.87423394,0.000178,2]
[401199443,1768038654563,-150.0,0.000178,2]
[401199444,1768038654573,-178.71892515,0.000178,2]
[401199445,1768038654582,-1000.0,0.00017806,2]
[401199446,1768038654591,-500.0,0.00017808,2]
[401199447,1768038654601,-207.26988174,0.00017808,2]
[401199448,1768038654610,-171.19946989,0.00017811,2]
[401199449,1768038654620,-1000.0,0.00017813,2]
[401199450,1768038654630,-1000.0,0.00017816,2]
[401199451,1768038654640,-263.75602621,0.00017818,2]
[401199452,1768038654651,-255.68743637,0.00017818,2]
[401199453,1768038654662,-189.54348929,0.00017818,2]
[401199454,1768038654672,-229.31905987,0.00017818,2]
[401199455,1768038654683,-216.87423394,0.00017818,2]
[401199456,1768038654693,-178.71892515,0.00017818,2]
[401199457,1768038654704,-519.0,0.00017819,2]
[401199458,1768038654714,-1000.0,0.0001782,2]
[401199459,1768038654724,-4000.0,0.0001782,2]
[401199460,1768038654734,-4000.0,0.0001782,2]
[401199461,1768038654744,-159.35537069,0.0001782,2]
[401199462,1768038654754,-1000.0,0.00017822,2]
[401199463,1768038654764,-150.0,0.00017823,2]
[401199464,1768038654773,-1000.0,0.00017825,2]
[401199465,1768038654783,-1000.0,0.00017826,2]
[401199466,1768038654793,-150.0,0.00017827,2]
[401199467,1768038654803,-24666.13896743,0.0001783,2]
[401199468,1768038654813,-4000.0,0.0001783,2]
[401199469,1768038654823,-171.19946989,0.00017833,2]
[401199470,1768038654833,-1000.0,0.00017836,2]
[401199471,1768038654844,-263.75602621,0.00017836,2]
[401199472,1768038654853,-255.68743637,0.00017836,2]
[401199473,1768038654863,-189.54348929,0.00017836,2]
[401199474,1768038654872,-229.31905987,0.00017836,2]
[401199475,1768038654882,-216.87423394,0.00017836,2]
[401199476,1768038654892,-150.0,0.00017836,2]
[401199477,1768038654903,-178.71892515,0.00017836,2]
[401199478,1768038654914,-1000.0,0.00017841,2]
[401199479,1768038654924,-1000.0,0.00017841,2]
[401199480,1768038654933,-561.2,0.00017843,2]
[401199481,1768038654943,-150.0,0.00017852,2]
[401199482,1768038654952,-263.75602621,0.00017855,2]
[401199483,1768038654962,-255.68743637,0.00017855,2]
[401199484,1768038654971,-189.54348929,0.00017855,2]
[401199485,1768038654980,-229.31905987,0.00017855,2]
[401199486,1768038654994,-216.87423394,0.00017855,2]
[401199487,1768038655004,-178.71892515,0.00017855,2]
[401199488,1768038655014,-200.0,0.00017855,2]
[401199489,1768038655023,-171.19946989,0.00017856,2]
[401199490,1768038655034,-200.0,0.00017856,2]
[401199491,1768038655044,-200.0,0.00017856,2]
[401199492,1768038655054,-1000.0,0.00017856,2]
[401199493,1768038655064,-1000.0,0.00017856,2]
[401199494,1768038655073,-4000.0,0.0001786,2]
[401199495,1768038655082,-1000.0,0.00017861,2]
[401199496,1768038655091,-150.0,0.00017862,2]
[401199497,1768038655101,-501.30688292,0.00017863,2]
[401199498,1768038655110,-1000.0,0.00017865,2]
[401199499,1768038655120,-150.0,0.00017867,2]
[401199500,1768038655130,-1000.0,0.00017867,2]
[401199501,1768038655140,-1000.0,0.00017868,2]
[401199502,1768038655150,-1000.0,0.00017872,2]
[401199503,1768038655159,-263.75602621,0.00017873,2]
[401199504,1768038655169,-255.68743637,0.00017873,2]
[401199505,1768038655178,-189.54348929,0.00017873,2]
[401199506,1768038655188,-229.31905987,0.00017873,2]
[401199507,1768038655198,-216.87423394,0.00017873,2]
[401199508,1768038655208,-178.71892515,0.00017873,2]
[401199509,1768038655218,-1000.0,0.00017875,2]
[401199510,1768038655227,-150.0,0.00017877,2]
[401199511,1768038655238,-171.19946989,0.00017878,2]
[401199512,1768038655248,-1000.0,0.00017879,2]
[401199513,1768038655259,-4000.0,0.0001788,2]
[401199514,1768038655269,-150.0,0.00017882,2]
[401199515,1768038655279,-1000.0,0.00017882,2]
[401199516,1768038655289,-1000.0,0.00017883,2]
[401199517,1768038655298,-150.0,0.00017887,2]
[401199518,1768038655308,-387.13656056,0.00017889,2]
[401199519,1768038655319,-1000.0,0.0001789,2]
[401199520,1768038655328,-263.75602621,0.00017891,2]
[401199521,1768038655338,-255.68743637,0.00017891,2]
[401199522,1768038655348,-189.54348929,0.00017891,2]
[401199523,1768038655359,-229.31905987,0.00017891,2]
[401199524,1768038655369,-216.87423394,0.00017891,2]
[401199525,1768038655379,-178.71892515,0.00017891,2]
[401199526,1768038655389,-25000.0,0.00017891,3]
[401199527,1768038655399,-150.0,0.00017896,2]
[401199528,1768038655410,-1000.0,0.00017899,2]
[401199529,1768038655420,-500.0,0.00017899,2]
[401199530,1768038655430,-1000.0,0.000179,2]
[401199531,1768038655439,-1000.0,0.000179,2]
[401199532,1768038655449,-1000.0,0.000179,2]
[401199533,1768038655460,-1000.0,0.000179,2]
[401199534,1768038655470,-1000.0,0.000179,2]
[401199535,1768038655480,-1000.0,0.000179,2]
[401199536,1768038655491,-1000.0,0.000179,2]
[401199537,1768038655501,-1000.0,0.000179,2]
[401199538,1768038655510,-1000.0,0.000179,2]
[401199539,1768038655520,-1000.0,0.000179,2]
[401199540,1768038655530,-1000.0,0.000179,2]
[401199541,1768038655540,-1000.0,0.000179,2]
[401199542,1768038655551,-1000.0,0.000179,2]
[401199543,1768038655562,-1000.0,0.000179,2]
[401199544,1768038655571,-1000.0,0.000179,2]
[401199545,1768038655582,-1000.0,0.000179,2]
[401199546,1768038655591,-1000.0,0.000179,2]
[401199547,1768038655603,-1000.0,0.000179,2]
[401199548,1768038655614,-1000.0,0.000179,2]
[401199549,1768038655624,-1000.0,0.000179,2]
[401199550,1768038655635,-1000.0,0.000179,2]
[401199551,1768038655645,-1000.0,0.000179,2]
[401199552,1768038655655,-1000.0,0.000179,2]
[401199553,1768038655664,-1000.0,0.000179,2]
[401199554,1768038655674,-1000.0,0.000179,2]
[401199555,1768038655683,-1000.0,0.000179,2]
[401199556,1768038655692,-1000.0,0.000179,2]
[401199557,1768038655703,-1000.0,0.000179,2]
[401199558,1768038655712,-1000.0,0.000179,2]
[401199559,1768038655722,-1000.0,0.000179,2]
[401199560,1768038655732,-1000.0,0.000179,2]
[401199561,1768038655741,-1000.0,0.000179,2]
[401199562,1768038655751,-1000.0,0.000179,2]
[401199563,1768038655761,-1000.0,0.000179,2]
[401199564,1768038655771,-1000.0,0.000179,2]
[401199565,1768038655780,-1000.0,0.000179,2]
[401199566,1768038655790,-1000.0,0.000179,2]
[401199567,1768038655800,-1000.0,0.000179,2]
[401199568,1768038655811,-1000.0,0.000179,2]
[401199569,1768038655820,-1000.0,0.000179,2]
[401199570,1768038655830,-1000.0,0.000179,2]
[401199571,1768038655839,-1000.0,0.000179,2]
[401199572,1768038655848,-1000.0,0.000179,2]
[401199573,1768038655858,-1000.0,0.000179,2]
[401199574,1768038655867,-1000.0,0.000179,2]
[401199575,1768038655876,-1000.0,0.000179,2]
[401199576,1768038655886,-1000.0,0.000179,2]
[401199577,1768038655896,-1000.0,0.000179,2]
[401199578,1768038655906,-1000.0,0.000179,2]
[401199579,1768038655915,-1000.0,0.000179,2]
[401199580,1768038655925,-1000.0,0.000179,2]
[401199581,1768038655934,-1000.0,0.000179,2]
[401199582,1768038655943,-1000.0,0.000179,2]
[401199583,1768038655953,-1000.0,0.000179,2]
[401199584,1768038655963,-1000.0,0.000179,2]
[401199585,1768038655973,-1000.0,0.000179,2]
[401199586,1768038655983,-1000.0,0.000179,2]
[401199587,1768038655995,-775.0,0.000179,2]
[401199588,1768038656005,-33588.0433,0.000179,2]
[401199589,1768038656015,-2586.3524,0.000179,2]
[401199590,1768038656025,-1000.0,0.000179,2]
[401199591,1768038656035,-10000.0,0.000179,2]
[401199592,1768038656044,-25000.0,0.000179,3]
[401199593,1768038656054,-1740.0035,0.000179,2]
[401199594,1768038656064,-591.38897096,0.000179,2]
[401199595,1768038656311,-171.19946989,0.000179,2]
[401199596,1768038656335,-6228.92016198,0.000179,3]
[401199597,1768038656345,-1000.0,0.000179,2]
[401199598,1768038656355,-1272.76127951,0.000179,2]
[401199599,1768038656365,-1272.76127943,0.000179,2]
[401199600,1768038656375,-1272.76127943,0.000179,2]
[401199601,1768038656385,-1272.76127943,0.000179,2]
[401199602,1768038656395,-1272.76127943,0.000179,2]
[401199603,1768038656406,-1272.76127943,0.000179,2]
[401199604,1768038656416,-1272.76127943,0.000179,2]
[401199605,1768038656426,-1272.76127943,0.000179,2]
[401199606,1768038656437,-1272.76127943,0.000179,2]
[401199607,1768038656446,-1272.76127943,0.000179,2]
[401199608,1768038656456,-2872.23001475,0.000179,2]
[401199609,1768038656466,-1272.76127943,0.000179,2]
[401199610,1768038656475,-1272.76127943,0.000179,2]
[401199611,1768038656484,-1272.76127943,0.000179,2]
[401199612,1768038656494,-1272.76127943,0.000179,2]
[401199613,1768038656505,-1272.76127943,0.000179,2]
[401199614,1768038656516,-1588.9562832,0.000179,2]
[401199615,1768038656526,-1272.76127943,0.000179,2]
[401199616,1768038656536,-1272.76127943,0.000179,2]
[401199617,1768038656545,-1272.76127943,0.000179,2]
[401199618,1768038656554,-1272.76127943,0.000179,2]
[401199619,1768038656565,-1272.76127943,0.000179,2]
[401199620,1768038656574,-2141.74152153,0.000179,2]
[401199621,1768038656584,-8118.0,0.000179,2]
[401199622,1768038656594,-1000.0,0.00017901,2]
[401199623,1768038656603,-263.75602621,0.00017909,2]
[401199624,1768038656613,-255.68743637,0.00017909,2]
[401199625,1768038656623,-189.54348929,0.00017909,2]
[401199626,1768038656632,-229.31905987,0.00017909,2]
[401199627,1768038656642,-216.87423394,0.00017909,2]
[401199628,1768038656652,-178.71892515,0.00017909,2]
[401199629,1768038656663,-1000.0,0.0001791,2]
[401199630,1768038656673,-4000.0,0.0001791,2]
[401199631,1768038656683,-150.0,0.00017911,2]
[401199632,1768038656693,-1000.0,0.00017912,2]
[401199633,1768038656702,-150.0,0.00017918,2]
[401199634,1768038656712,-561.2,0.00017921,2]
[401199635,1768038656722,-150.0,0.00017926,2]
[401199636,1768038656732,-263.75602621,0.00017927,2]
[401199637,1768038656742,-255.68743637,0.00017927,2]
[401199638,1768038656752,-189.54348929,0.00017927,2]
[401199639,1768038656761,-229.31905987,0.00017927,2]
[401199640,1768038656772,-216.87423394,0.00017927,2]
[401199641,1768038656781,-178.71892515,0.00017927,2]
[401199642,1768038656791,-1000.0,0.0001793,2]
[401199643,1768038656801,-150.0,0.00017931,2]
[401199644,1768038656810,-150.0,0.00017933,2]
[401199645,1768038656820,-1000.0,0.00017939,2]
[401199646,1768038656830,-150.0,0.00017941,2]
[401199647,1768038656840,-1000.0,0.00017941,2]
[401199648,1768038656850,-1000.0,0.00017942,2]
[401199649,1768038656861,-1000.0,0.00017943,2]
[401199650,1768038656871,-263.75602621,0.00017945,2]
[401199651,1768038656880,-255.68743637,0.00017945,2]
[401199652,1768038656892,-189.54348929,0.00017945,2]
[401199653,1768038656902,-229.31905987,0.00017945,2]
[401199654,1768038656911,-216.87423394,0.00017945,2]
[401199655,1768038656920,-178.71892515,0.00017945,2]
[401199656,1768038656930,-181.00537575,0.00017946,2]
[401199657,1768038656944,-1000.0,0.0001795,2]
[401199658,1768038656955,-1000.0,0.00017951,2]
[401199659,1768038656965,-5912.4958686,0.00017952,2]
[401199660,1768038656975,-1000.0,0.00017953,2]
[401199661,1768038656985,-1000.0,0.00017953,2]
[401199662,1768038657000,-150.0,0.00017959,2]
[401199663,1768038657010,-1000.0,0.00017961,2]
[401199664,1768038657020,-263.75602621,0.00017964,2]
[401199665,1768038657030,-255.68743637,0.00017964,2]
[401199666,1768038657041,-189.54348929,0.00017964,2]
[401199667,1768038657051,-229.31905987,0.00017964,2]
[401199668,1768038657061,-216.87423394,0.00017964,2]
[401199669,1768038657072,-178.71892515,0.00017964,2]
[401199670,1768038657082,-1000.0,0.00017964,2]
[401199671,1768038657093,-1000.0,0.00017965,2]
[401199672,1768038657103,-150.0,0.00017965,2]
[401199673,1768038657113,-150.0,0.0001797,2]
[401199674,1768038657123,-303.0,0.00017973,2]
[401199675,1768038657133,-500.0,0.00017973,2]
[401199676,1768038657143,-500.0,0.00017973,2]
[401199677,1768038657153,-500.0,0.00017973,2]
[401199678,1768038657164,-500.0,0.00017973,2]
[401199679,1768038657174,-500.0,0.00017973,2]
[401199680,1768038657184,-500.0,0.00017973,2]
[401199681,1768038657194,-500.0,0.00017973,2]
[401199682,1768038657204,-500.0,0.00017973,2]
[401199683,1768038657214,-500.0,0.00017973,2]
[401199684,1768038657224,-150.34167383,0.00017973,2]
[401199685,1768038657234,-500.0,0.00017973,2]
[401199686,1768038657245,-500.0,0.00017973,2]
[401199687,1768038657255,-610.19552731,0.00017973,2]
[401199688,1768038657266,-500.0,0.00017973,2]
[401199689,1768038657276,-500.0,0.00017973,2]
[401199690,1768038657286,-500.0,0.00017973,2]
[401199691,1768038657296,-500.0,0.00017973,2]
[401199692,1768038657306,-500.0,0.00017973,2]
[401199693,1768038657316,-500.0,0.00017973,2]
[401199694,1768038657326,-500.0,0.00017973,2]
[401199695,1768038657336,-500.0,0.00017973,2]
[401199696,1768038657347,-260.97339631,0.00017973,2]
[401199697,1768038657356,-433.9562915,0.00017973,2]
[401199698,1768038657367,-300.29995774,0.00017973,2]
[401199699,1768038657377,-641.77796518,0.00017973,2]
[401199700,1768038657387,-571.47009533,0.00017973,2]
[401199701,1768038657398,-500.0,0.00017973,2]
[401199702,1768038657408,-500.0,0.00017973,2]
[401199703,1768038657418,-500.0,0.00017973,2]
[401199704,1768038657428,-500.0,0.00017973,2]
[401199705,1768038657437,-500.85151996,0.00017973,2]
[401199706,1768038657447,-500.0,0.00017973,2]
[401199707,1768038657457,-500.0,0.00017973,2]
[401199708,1768038657468,-500.0,0.00017973,2]
[401199709,1768038657477,-500.0,0.00017973,2]
[401199710,1768038657487,-500.0,0.00017973,2]
[401199711,1768038657497,-500.0,0.00017973,2]
[401199712,1768038657507,-501.2767774,0.00017973,2]
[401199713,1768038657517,-500.0,0.00017973,2]
[401199714,1768038657529,-500.0,0.00017973,2]
[401199715,1768038657538,-500.0,0.00017973,2]
[401199716,1768038657548,-191.10319937,0.00017973,2]
[401199717,1768038657558,-500.0,0.00017973,2]
[401199718,1768038657569,-500.0,0.00017973,2]
[401199719,1768038657579,-500.0,0.00017973,2]
[401199720,1768038657589,-500.0,0.00017973,2]
[401199721,1768038657599,-588.0072514,0.00017973,2]
[401199722,1768038657609,-500.0,0.00017973,2]
[401199723,1768038657618,-500.0,0.00017973,2]
[401199724,1768038657628,-500.0,0.00017973,2]
[401199725,1768038657638,-150.0,0.00017973,2]
[401199726,1768038657648,-150.0,0.00017973,2]
[401199727,1768038657658,-160.88728799,0.00017974,2]
[401199728,1768038657667,-327.41,0.00017975,2]
[401199729,1768038657678,-1000.0,0.00017975,2]
[401199730,1768038657687,-245.0,0.00017976,2]
[401199731,1768038657698,-1000.0,0.00017981,2]
[401199732,1768038657709,-263.75602621,0.00017982,2]
[401199733,1768038657719,-255.68743637,0.00017982,2]
[401199734,1768038657729,-189.54348929,0.00017982,2]
[401199735,1768038657739,-229.31905987,0.00017982,2]
[401199736,1768038657750,-216.87423394,0.00017982,2]
[401199737,1768038657759,-178.71892515,0.00017982,2]
[401199738,1768038657769,-500.0,0.00017982,2]
[401199739,1768038657778,-766.11378665,0.0001799,2]
[401199740,1768038657787,-766.11378665,0.0001799,2]
[401199741,1768038657797,-1000.0,0.00017992,2]
[401199742,1768038657807,-1000.0,0.00017993,2]
[401199743,1768038657816,-1006.5165,0.00017999,2]
[401199744,1768038657826,-276.645,0.00017999,2]
[401199745,1768038657837,-11563.77530563,0.00017999,2]
[401199746,1768038657849,-300.0,0.00017999,2]
[401199747,1768038657858,-300.0,0.00017999,2]
[401199748,1768038657868,-249.76041872,0.00017999,2]
[401199749,1768038657877,-300.0,0.00017999,2]
[401199750,1768038657890,-666.0,0.00017999,2]
[401199751,1768038657899,-500.0,0.00017999,2]
[401199752,1768038657908,-500.0,0.00017999,2]
[401199753,1768038657918,-500.0,0.00017999,2]
[401199754,1768038657927,-500.0,0.00017999,2]
[401199755,1768038657936,-500.0,0.00017999,2]
[401199756,1768038657946,-500.0,0.00017999,2]
[401199757,1768038657955,-359.11221161,0.00017999,2]
[401199758,1768038657964,-263.75602621,0.00018,2]
[401199759,1768038657974,-255.68743637,0.00018,2]
[401199760,1768038657983,-189.54348929,0.00018,2]
[401199761,1768038657994,-196.21798024,0.00018,2]
[401199762,1768038658004,-229.31905987,0.00018,2]
[401199763,1768038658013,-223.10788253,0.00018,2]
[401199764,1768038658022,-216.79771002,0.00018,2]
[401199765,1768038658032,-298.52493072,0.00018,2]
[401199766,1768038658041,-216.87423394,0.00018,2]
[401199767,1768038658050,-178.17676299,0.00018,2]
[401199768,1768038658060,-156.68286018,0.00018,2]
[401199769,1768038658070,-252.12379273,0.00018,2]
[401199770,1768038658079,-247.12115074,0.00018,2]
[401199771,1768038658088,-231.22039699,0.00018,2]
[401199772,1768038658098,-194.08427451,0.00018,2]
[401199773,1768038658107,-178.71892515,0.00018,2]
[401199774,1768038658117,-804409.43063998,0.00018,2]
[401199775,1768038658982,-372.55480803,0.00018,2]
[401199776,1768038738204,2732.3,8.552e-05,2]
[401199777,1768038738403,2732.3,8.985e-05,2]
[401199778,1768038738594,2732.3,9.417e-05,2]
[401199779,1768038738791,1803.11,9.85e-05,2]
[401199780,1768038738813,929.19,9.85e-05,2]
[401199781,1768038738975,2732.3,0.00010282,2]
[401199783,1768038780071,-620.36339307,0.00010715,2]
[401199784,1768038782657,-668.29529752,0.00010715,2]
[401199785,1768038784786,-162.1637805,0.00010715,2]
[401199786,1768038786314,-293.03618238,0.00010715,2]
[401199787,1768038790183,-206.96381745,0.00010715,2]
[401199788,1768038792617,-237.93014248,0.00010715,2]
[401199789,1768038795032,-211.45476909,0.00010715,2]
[401199790,1768038798187,-332.09261751,0.00010715,2]
[401199791,1768038798208,-54.54108206,0.00011147,2]
[401199792,1768038799832,-298.66251776,0.00011147,2]
[401199793,1768038801406,-225.27615223,0.00011147,2]
[401199794,1768038804074,-236.15313182,0.00011147,2]
[401199795,1768038806620,-215.56679287,0.00011147,2]
[401199796,1768038809303,-247.83108918,0.00011147,2]
[401199797,1768038812153,-526.3855839,0.00011147,2]
[401199798,1768038813651,-257.17570933,0.00011147,2]
[401199799,1768038815668,-191.63939808,0.00011147,2]
[401199800,1768038870127,-236.4619342,0.00011147,2]
[401199801,1768038872266,-242.60660857,0.00011147,2]
[401199802,1768038872294,-324.87275436,0.0001158,2]
[401199803,1768038873362,-168.42467707,0.0001158,2]
[401199804,1768038876824,-253.39799004,0.0001158,2]
[401199805,1768038878757,-482.80396995,0.0001158,2]
[401199806,1768038881323,-320.5206369,0.0001158,2]
[401199807,1768038882876,-250.0,0.0001158,2]
[401199808,1768038884539,-186.26906812,0.0001158,2]
[401199809,1768038889801,-156.09199774,0.0001158,2]
[401199810,1768038891492,-220.47777362,0.0001158,2]
[401199811,1768038894684,-177.02003732,0.0001158,2]
[401199812,1768038897419,-182.25904905,0.0001158,2]
[401199813,1768038898878,-10.16204583,0.0001158,2]
[401199814,1768038898900,-162.58813593,0.00011912,2]
[401199815,1768038898923,-9.50886729,0.00012012,2]
[401199816,1768038905726,-159.49801717,0.00012012,2]
[401199817,1768038907886,-500.0,0.00012012,2]
[401199818,1768038911884,-350.14123088,0.00012012,2]
[401199819,1768038914538,-333.28927756,0.00012012,2]
[401199820,1768038918766,-335.43011642,0.00012012,2]
[401199821,1768038921531,-383.42390206,0.00012012,2]
[401199822,1768038923159,-265.59194196,0.00012012,2]
[401199823,1768038925869,-351.54260527,0.00012012,2]
[401199824,1768038927435,-43.87404139,0.00012012,2]
[401199825,1768038927460,-396.97096241,0.00012444,2]
[401199826,1768038929850,-360.97001036,0.00012444,2]
[401199827,1768038932808,-286.28848714,0.00012444,2]
[401199828,1768038935614,-300.0,0.00012444,2]
[401199829,1768038939021,-166.2404458,0.00012444,2]
[401199830,1768038941795,-540.00131542,0.00012444,2]
[401199831,1768038944532,-305.02621265,0.00012444,2]
[401199832,1768038948793,-376.80256622,0.00012444,2]